bitfinex/quotes_SOLUSD_20220129
["timestamp","ask_amount","ask_price","bid_price","bid_amount"]
[1643423620450,1.51784807,91.5,91.415,1.49976482]
[1643423620650,16.412,91.49,91.414,4.39157703]
[1643423620851,45.93809684,91.489,91.414,4.39157703]
[1643423621051,45.93809684,91.489,91.416,2.89181221]
[1643423621254,45.93809684,91.489,91.417,0.25]
[1643423621650,45.93809684,91.489,91.418,2.89181221]
[1643423621850,45.93809684,91.489,91.419,0.25]
[1643423622252,45.93809684,91.489,91.42,2.89181221]
[1643423622451,45.93809684,91.489,91.419,0.25]
[1643423622851,45.93809684,91.489,91.42,2.89181221]
[1643423623050,45.93809684,91.489,91.43,6.0]
[1643423623453,45.93809684,91.489,91.431,0.25]
[1643423623454,45.68809684,91.489,91.431,0.25]
[1643423623853,0.25,91.488,91.431,0.25]
[1643423624052,45.68809684,91.489,91.431,0.25]
[1643423625956,0.25,91.488,91.431,0.25]
[1643423626353,45.68809684,91.489,91.431,0.25]
[1643423629056,0.25,91.488,91.413,22.574]
[1643423629260,0.25,91.488,91.409,4.39157703]
[1643423629261,16.414,91.48,91.409,4.39157703]
[1643423629458,66.0,91.479,91.387,1.49976482]
[1643423629659,1.51784807,91.464,91.377,1.49976482]
[1643423629859,15.77,91.46,91.376,1.49976482]
[1643423630060,1.76784807,91.463,91.364,1.49976482]
[1643423630061,15.77,91.45,91.364,1.49976482]
[1643423630259,33.02298633,91.449,91.364,1.49976482]
[1643423630459,16.421,91.44,91.363,426.57053162]
[1643423630862,0.25,91.439,91.36,1.49976482]
[1643423631267,0.25,91.439,91.361,0.25]
[1643423631663,0.25,91.439,91.358,1.49976482]
[1643423631865,1.76784807,91.445,91.36,0.25]
[1643423632063,16.422,91.43,91.36,0.25]
[1643423632265,42.21548221,91.429,91.36,0.25]
[1643423632664,6.0,91.419,91.36,0.25]
[1643423632864,6.0,91.419,91.335,24.8773]
[1643423632865,0.25,91.418,91.343,0.25]
[1643423633265,0.25,91.418,91.342,0.25]
[1643423633464,41.96548221,91.429,91.351,6.0]
[1643423633666,41.96548221,91.429,91.353,1.49976482]
[1643423633868,0.25,91.428,91.354,0.25]
[1643423634664,6.0,91.419,91.354,0.25]
[1643423634864,0.25,91.418,91.354,0.25]
[1643423635064,0.25,91.418,91.348,0.25]
[1643423635265,6.0,91.419,91.348,0.25]
[1643423636767,0.25,91.418,91.348,0.25]
[1643423638870,0.25,91.419,91.348,0.25]
[1643423639074,0.25,91.419,91.347,24.9455]
[1643423640272,0.25,91.419,91.348,0.25]
[1643423641076,0.25,91.419,91.331,0.25]
[1643423641679,35.14826008,91.409,91.331,0.25]
[1643423641875,0.25,91.408,91.331,0.25]
[1643423642074,6.0,91.399,91.331,0.25]
[1643423642276,0.25,91.398,91.331,0.25]
[1643423643476,0.25,91.407,91.331,0.25]
[1643423645676,6.0,91.398,91.331,0.25]
[1643423645878,0.25,91.397,91.331,0.25]
[1643423646679,0.25,91.397,91.34,6.0]
[1643423646979,0.25,91.397,91.341,0.25]
[1643423648077,0.25,91.397,91.331,0.25]
[1643423649682,0.25,91.399,91.331,0.25]
[1643423650683,37.76548098,91.389,91.331,0.25]
[1643423650882,0.25,91.388,91.331,0.25]
[1643423651483,37.76548098,91.389,91.331,0.25]
[1643423652408,0.25,91.388,91.331,0.25]
[1643423652589,37.76548098,91.389,91.331,0.25]
[1643423656998,2.95669142,91.412,91.331,0.25]
[1643423657197,16.425,91.42,91.34,6.0]
[1643423657399,0.25,91.407,91.341,0.25]
[1643423657596,6.0,91.398,91.341,0.25]
[1643423657995,43.38241594,91.397,91.341,0.25]
[1643423658296,0.25,91.396,91.341,0.25]
[1643423658697,43.38241594,91.397,91.331,0.25]
[1643423658897,43.38241594,91.397,91.34,6.0]
[1643423659296,43.38241594,91.397,91.341,0.25]
[1643423660523,43.38241594,91.397,91.349,6.0]
[1643423660922,43.38241594,91.397,91.35,0.25]
[1643423661921,43.38241594,91.397,91.342,0.25]
[1643423662724,43.38241594,91.397,91.342,1.74976482]
[1643423662925,43.38241594,91.397,91.342,1.49976482]
[1643423663125,43.38241594,91.397,91.343,0.25]
[1643423663724,43.38241594,91.397,91.345,1.49976482]
[1643423663925,43.38241594,91.397,91.346,0.25]
[1643423664925,43.38241594,91.397,91.355,6.0]
[1643423665326,43.38241594,91.397,91.356,0.25]
[1643423665525,43.38241594,91.397,91.356,6.25]
[1643423666229,43.38241594,91.397,91.356,0.25]
[1643423666629,43.38241594,91.397,91.349,0.25]
[1643423667028,43.38241594,91.397,91.347,1.49976482]
[1643423667231,43.38241594,91.397,91.348,0.25]
[1643423668835,43.38241594,91.397,91.348,1.74976482]
[1643423669035,43.38241594,91.397,91.349,1.49976482]
[1643423669438,43.38241594,91.397,91.35,0.25]
[1643423669638,43.38241594,91.397,91.35,1.74976482]
[1643423676850,43.38241594,91.397,91.35,0.25]
[1643423677249,43.38241594,91.397,91.35,1.74976482]
[1643423677449,43.38241594,91.397,91.35,1.49976482]
[1643423677649,43.38241594,91.397,91.351,0.25]
[1643423678779,43.38241594,91.397,91.35,0.25]
[1643423679276,43.38241594,91.397,91.341,23.0065]
[1643423679277,0.25,91.396,91.345,1.49976482]
[1643423679476,0.25,91.396,91.294,4.53310946]
[1643423679477,0.25,91.396,91.342,1.49976482]
[1643423679676,0.25,91.396,91.294,4.53310946]
[1643423679677,0.25,91.396,91.34,1.49976482]
[1643423679877,0.25,91.396,91.339,1.49976482]
[1643423680079,15.77,91.39,91.328,1.49976482]
[1643423680280,0.25,91.389,91.35,228.36692373]
[1643423680480,16.431,91.38,91.35,228.36692373]
[1643423680679,41.18426332,91.379,91.35,228.36692373]
[1643423680881,41.43426332,91.379,91.35,228.36692373]
[1643423682479,6.0,91.369,91.35,228.36692373]
[1643423683080,0.25,91.368,91.35,228.36692373]
[1643423687185,6.0,91.369,91.35,228.36692373]
[1643423687384,0.25,91.368,91.35,228.36692373]
[1643423693791,0.25,91.368,91.309,1.49976482]
[1643423693792,67.0,91.367,91.309,1.49976482]
[1643423694191,0.25,91.366,91.294,1.49976482]
[1643423694592,0.25,91.366,91.288,23.7102]
[1643423694593,0.25,91.366,91.293,1.49976482]
[1643423694791,0.25,91.366,91.29,1.49976482]
[1643423694992,0.25,91.366,91.289,1.49976482]
[1643423695192,0.25,91.366,91.29,34.12566624]
[1643423695392,0.25,91.367,91.291,0.25]
[1643423695995,16.435,91.36,91.291,0.25]
[1643423696394,0.25,91.359,91.291,0.25]
[1643423697196,32.207,91.35,91.285,1.49976482]
[1643423697423,24.5774,91.349,91.268,1.49976482]
[1643423697597,24.5774,91.349,91.236,23.1628]
[1643423697598,27.53409142,91.349,91.26,1.49976482]
[1643423697797,6.0,91.339,91.252,6.0]
[1643423697997,15.77,91.33,91.247,1.49976482]
[1643423698200,15.77,91.33,91.236,23.1628]
[1643423698201,1.9914258,91.329,91.248,42.46470124]
[1643423698398,2.2414258,91.329,91.236,1.49976482]
[1643423698600,2.95669142,91.328,91.236,1.49976482]
[1643423698798,0.25,91.327,91.232,1.49976482]
[1643423698999,23.8643,91.327,91.231,1.49976482]
[1643423699198,11.25721763,91.326,91.229,1.49976482]
[1643423699399,0.25,91.325,91.22,1.49976482]
[1643423699698,16.445,91.31,91.215,1.49976482]
[1643423699898,15.77,91.3,91.205,1.49976482]
[1643423700098,15.77,91.3,91.204,1.49976482]
[1643423700298,3.20669142,91.299,91.204,1.49976482]
[1643423700498,30.73415063,91.299,91.205,46.05802846]
[1643423700698,23.9993,91.298,91.2,1.49976482]
[1643423700898,23.9993,91.298,91.201,0.25]
[1643423700899,16.45,91.28,91.201,0.25]
[1643423701103,23.9993,91.279,91.201,0.25]
[1643423701302,24.2493,91.279,91.201,0.25]
[1643423701499,6.0,91.269,91.201,0.25]
[1643423701699,7.79551147,91.268,91.201,0.25]
[1643423701902,31.55511147,91.268,91.201,0.25]
[1643423702101,31.55511147,91.268,91.19,41.28096661]
[1643423702102,16.455,91.26,91.19,41.28096661]
[1643423702300,16.455,91.26,91.17,1.49976482]
[1643423702301,15.77,91.25,91.17,1.49976482]
[1643423702501,24.9191,91.249,91.175,1.49976482]
[1643423702701,25.1691,91.249,91.158,3.03586918]
[1643423702901,25.1691,91.249,91.152,426.09253529]
[1643423703102,25.1691,91.249,91.152,424.59277047]
[1643423703302,26.58372336,91.248,91.153,45.38886259]
[1643423703503,26.58372336,91.248,91.162,1.49976482]
[1643423703706,46.2502,91.289,91.167,1.49976482]
[1643423704105,46.2502,91.289,91.177,6.0]
[1643423704304,46.2502,91.289,91.178,22.9782]
[1643423704506,28.79128836,91.288,91.179,30.98816673]
[1643423704705,28.79128836,91.288,91.179,33.86398982]
[1643423704929,6.0,91.278,91.189,6.0]
[1643423705130,6.0,91.278,91.19,24.2888]
[1643423705331,0.25,91.277,91.19,24.5388]
[1643423705531,0.25,91.277,91.2,6.0]
[1643423705730,15.77,91.28,91.202,36.84144876]
[1643423706130,15.77,91.28,91.212,6.0]
[1643423706333,15.77,91.28,91.213,24.7081]
[1643423706531,6.0,91.27,91.213,24.7081]
[1643423706732,7.03168232,91.269,91.202,36.84144876]
[1643423707331,0.25,91.268,91.202,36.84144876]
[1643423707732,0.25,91.268,91.203,0.25]
[1643423708133,0.25,91.268,91.203,23.4795]
[1643423708333,0.25,91.268,91.212,6.0]
[1643423708536,0.25,91.268,91.203,23.4795]
[1643423709533,46.2502,91.289,91.213,6.0]
[1643423709734,54.815,91.34,91.214,24.0419]
[1643423709935,15.77,91.33,91.214,24.2919]
[1643423710137,46.7132,91.339,91.224,6.0]
[1643423710334,46.7132,91.339,91.225,49.1619]
[1643423710535,31.56760053,91.338,91.235,6.0]
[1643423710736,31.56760053,91.338,91.236,24.0419]
[1643423710935,31.56760053,91.338,91.237,108.5]
[1643423711136,31.56760053,91.338,91.248,36.84144876]
[1643423711336,0.25,91.337,91.249,23.7367]
[1643423711539,0.25,91.337,91.259,6.0]
[1643423711737,0.25,91.337,91.26,23.4867]
[1643423711943,0.25,91.337,91.26,23.7367]
[1643423712138,0.25,91.338,91.27,6.0]
[1643423712337,46.7132,91.339,91.271,0.25]
[1643423712740,46.7132,91.339,91.271,39.78558056]
[1643423712938,27.97449927,91.349,91.271,39.78558056]
[1643423713138,27.97449927,91.349,91.281,6.0]
[1643423713338,27.97449927,91.349,91.282,0.25]
[1643423713539,27.97449927,91.349,91.282,6.25]
[1643423713741,0.25,91.348,91.282,6.25]
[1643423714738,27.97449927,91.349,91.282,6.25]
[1643423715340,24.0566,91.361,91.282,6.25]
[1643423715740,32.202,91.39,91.282,9.12582309]
[1643423715940,24.2567,91.389,91.283,22.5359]
[1643423716141,24.2567,91.389,91.293,6.0]
[1643423716441,33.32346698,91.378,91.294,59.58347867]
[1643423716645,33.32346698,91.378,91.304,6.0]
[1643423716843,33.32346698,91.378,91.305,0.25]
[1643423717044,33.32346698,91.378,91.305,6.25]
[1643423717644,33.32346698,91.378,91.306,6.0]
[1643423717844,0.25,91.377,91.316,39.57945065]
[1643423718046,0.25,91.377,91.326,6.0]
[1643423718446,0.25,91.377,91.327,0.25]
[1643423719648,0.25,91.377,91.327,6.25]
[1643423721854,0.25,91.377,91.327,6.0]
[1643423722051,6.0,91.368,91.328,0.25]
[1643423722351,0.25,91.377,91.328,0.25]
[1643423724780,6.0,91.368,91.328,0.25]
[1643423725181,0.25,91.377,91.328,0.25]
[1643423726082,6.0,91.368,91.328,0.25]
[1643423726882,6.0,91.368,91.295,24.8347]
[1643423727086,67.0,91.366,91.27,15.77]
[1643423727284,47.6392,91.365,91.261,24.853]
[1643423727483,15.77,91.36,91.261,24.853]
[1643423727986,5.20619512,91.359,91.262,39.29269746]
[1643423728185,16.44,91.34,91.262,39.29269746]
[1643423728383,32.2710378,91.339,91.263,0.25]
[1643423728882,32.2710378,91.339,91.272,6.0]
[1643423729283,32.2710378,91.339,91.273,0.25]
[1643423729687,32.2710378,91.339,91.273,24.224]
[1643423730484,32.2710378,91.339,91.283,6.0]
[1643423730684,32.2710378,91.339,91.284,37.58433186]
[1643423730884,32.2710378,91.339,91.284,37.83433186]
[1643423731086,32.2710378,91.339,91.294,6.0]
[1643423731301,32.2710378,91.339,91.295,0.25]
[1643423731497,32.2710378,91.339,91.295,6.0]
[1643423731702,32.2710378,91.339,91.285,24.5882]
[1643423731898,32.2710378,91.339,91.286,0.25]
[1643423732300,32.2710378,91.339,91.25,24.9305]
[1643423732499,23.1173,91.338,91.251,23.1909]
[1643423732700,23.1173,91.338,91.26,6.0]
[1643423732900,0.25,91.337,91.261,6.25]
[1643423733200,23.1173,91.338,91.261,114.75]
[1643423733400,32.0210378,91.339,91.262,39.67106497]
[1643423733601,32.0210378,91.339,91.272,6.0]
[1643423733800,32.0210378,91.339,91.273,22.8722]
[1643423734300,0.25,91.338,91.273,22.8722]
[1643423736105,32.0210378,91.339,91.283,6.0]
[1643423736303,32.0210378,91.339,91.284,35.55512957]
[1643423736503,32.0210378,91.339,91.294,6.0]
[1643423736906,32.0210378,91.339,91.295,0.25]
[1643423737106,32.0210378,91.339,91.295,6.0]
[1643423737305,0.25,91.338,91.285,23.3945]
[1643423737805,32.0210378,91.339,91.286,0.25]
[1643423738610,0.25,91.338,91.285,23.3945]
[1643423738809,3.20669142,91.338,91.285,23.3945]
[1643423739009,2.95669142,91.337,91.259,1.49976482]
[1643423739208,2.95669142,91.337,91.221,108.5]
[1643423739209,24.1675,91.336,91.261,6.0]
[1643423739410,24.4175,91.336,91.262,0.25]
[1643423739709,24.4175,91.336,91.269,6.0]
[1643423739710,2.95669142,91.335,91.269,6.0]
[1643423739909,0.25,91.334,91.27,0.25]
[1643423740312,2.95669142,91.333,91.27,0.25]
[1643423740711,2.95669142,91.333,91.235,2.88306455]
[1643423740712,0.25,91.332,91.25,1.49976482]
[1643423740912,0.25,91.332,91.241,1.49976482]
[1643423741112,0.25,91.332,91.261,6.0]
[1643423741310,0.25,91.332,91.262,38.2492198]
[1643423741710,0.25,91.335,91.262,38.2492198]
[1643423741912,0.25,91.335,91.263,23.065]
[1643423742111,0.25,91.335,91.263,23.315]
[1643423743034,3.30193288,91.325,91.263,23.315]
[1643423743435,0.25,91.324,91.263,23.315]
[1643423744344,0.25,91.324,91.246,25.45576482]
[1643423744544,27.03849142,91.324,91.233,1.49976482]
[1643423744840,15.77,91.32,91.23,1.49976482]
[1643423745041,15.77,91.32,91.228,1.49976482]
[1643423745346,3.20669142,91.319,91.228,1.49976482]
[1643423745540,12.97669142,91.319,91.229,46.35145417]
[1643423745744,2.95669142,91.318,91.229,46.35145417]
[1643423745941,2.95669142,91.318,91.23,0.25]
[1643423746146,16.446,91.31,91.23,0.25]
[1643423746347,0.25,91.309,91.225,1.49976482]
[1643423746540,0.25,91.309,91.222,24.857]
[1643423746541,6.0,91.3,91.222,24.857]
[1643423746941,28.05507562,91.299,91.222,24.857]
[1643423747142,16.448,91.29,91.222,24.857]
[1643423747342,0.25,91.289,91.222,24.857]
[1643423747742,0.25,91.289,91.223,0.25]
[1643423748544,0.25,91.289,91.219,42.02885982]
[1643423749144,23.2734,91.298,91.229,6.0]
[1643423749346,27.80507562,91.299,91.23,0.25]
[1643423749548,27.80507562,91.299,91.23,9.12726126]
[1643423749948,6.0,91.289,91.231,23.9942]
[1643423750348,0.25,91.298,91.232,0.25]
[1643423750551,27.80507562,91.299,91.232,0.25]
[1643423750848,27.80507562,91.299,91.241,41.0981695]
[1643423751250,27.80507562,91.299,91.242,0.25]
[1643423751449,27.80507562,91.299,91.242,2.87726126]
[1643423751850,27.80507562,91.299,91.241,41.0981695]
[1643423752250,16.4611,91.309,91.242,2.87726126]
[1643423752549,24.7057,91.331,91.252,6.0]
[1643423752950,24.7057,91.331,91.253,9.12726126]
[1643423753152,30.78499871,91.33,91.264,38.89297715]
[1643423753349,30.78499871,91.33,91.265,23.5333]
[1643423753949,30.78499871,91.33,91.275,6.0]
[1643423754149,30.78499871,91.33,91.265,23.5333]
[1643423754850,6.0,91.32,91.265,23.5333]
[1643423755352,0.25,91.319,91.265,23.5333]
[1643423755651,0.25,91.319,91.265,23.2833]
[1643423755852,0.25,91.319,91.244,24.6674]
[1643423756051,2.95669142,91.318,91.244,24.9174]
[1643423756550,0.25,91.317,91.244,24.9174]
[1643423757051,0.25,91.317,91.255,35.54778059]
[1643423757255,0.25,91.317,91.256,23.3083]
[1643423757453,22.7317,91.319,91.265,6.0]
[1643423757653,0.25,91.318,91.266,6.0]
[1643423757959,3.20669142,91.318,91.239,1.49976482]
[1643423758153,2.95669142,91.317,91.256,0.25]
[1643423758356,22.7317,91.319,91.256,0.25]
[1643423758956,25.68839142,91.319,91.238,1.49976482]
[1643423759158,35.63409653,91.319,91.238,1.49976482]
[1643423759357,35.63409653,91.319,91.222,1.49976482]
[1643423759555,9.01137827,91.318,91.217,1.49976482]
[1643423759855,1.51784807,91.311,91.214,34.86813987]
[1643423760059,15.77,91.3,91.214,34.86813987]
[1643423760256,29.37386904,91.298,91.215,0.25]
[1643423760755,0.25,91.297,91.213,1.49976482]
[1643423760960,0.25,91.297,91.214,0.25]
[1643423761980,16.447,91.29,91.21,0.25]
[1643423762181,5.94910164,91.279,91.21,0.25]
[1643423762380,0.25,91.278,91.21,0.25]
[1643423763584,0.25,91.278,91.183,24.9375]
[1643423763585,23.8107,91.278,91.2,0.25]
[1643423763785,23.8107,91.278,91.196,0.25]
[1643423763983,23.8107,91.278,91.199,1.49976482]
[1643423764185,16.451,91.27,91.204,6.0]
[1643423764485,0.25,91.269,91.206,33.67911489]
[1643423764884,0.25,91.269,91.2,1.49976482]
[1643423765084,0.25,91.269,91.189,1.49976482]
[1643423765290,16.456,91.25,91.185,6.0]
[1643423765491,16.456,91.25,91.186,22.9433]
[1643423765686,15.77,91.27,91.187,67.0]
[1643423765892,5.94910164,91.279,91.19,1.49976482]
[1643423766094,5.94910164,91.279,91.204,1.49976482]
[1643423766286,24.9749,91.309,91.205,1.74976482]
[1643423766489,24.9749,91.309,91.214,6.0]
[1643423766686,16.446,91.3,91.215,30.6255]
[1643423766887,16.446,91.3,91.216,0.25]
[1643423767088,0.25,91.299,91.216,0.25]
[1643423767389,6.0,91.29,91.216,0.25]
[1643423767788,0.25,91.289,91.216,0.25]
[1643423768787,24.9709,91.289,91.216,0.25]
[1643423770491,6.76889518,91.279,91.216,0.25]
[1643423770689,12.76889518,91.279,91.216,0.25]
[1643423770893,0.25,91.278,91.216,0.25]
[1643423774392,0.25,91.288,91.217,2.88528891]
[1643423774594,0.25,91.308,91.227,6.0]
[1643423774793,0.25,91.308,91.228,23.0448]
[1643423774994,0.25,91.308,91.238,6.0]
[1643423775294,22.9197,91.319,91.239,0.25]
[1643423775295,33.65368936,91.318,91.239,0.25]
[1643423775494,33.65368936,91.318,91.239,9.13528891]
[1643423775694,33.65368936,91.318,91.24,6.0]
[1643423775896,33.65368936,91.318,91.241,0.25]
[1643423776497,6.0,91.308,91.241,0.25]
[1643423777497,6.0,91.308,91.223,4.38505373]
[1643423777698,15.77,91.3,91.205,1.49976482]
[1643423777901,0.25,91.299,91.197,24.0236]
[1643423778100,3.20669142,91.299,91.197,24.0236]
[1643423778305,2.95669142,91.298,91.197,24.0236]
[1643423778506,1.66928132,91.297,91.198,41.92890248]
[1643423778707,24.0029,91.296,91.198,41.92890248]
[1643423778904,0.25,91.295,91.198,41.92890248]
[1643423779102,16.451,91.28,91.198,41.92890248]
[1643423779304,30.72691931,91.279,91.198,41.92890248]
[1643423779505,30.72691931,91.279,91.209,108.5]
[1643423779705,30.72691931,91.279,91.21,23.4574]
[1643423779930,30.72691931,91.279,91.221,34.94812684]
[1643423780105,30.72691931,91.279,91.231,6.0]
[1643423780405,24.0029,91.296,91.232,0.25]
[1643423780607,6.0,91.286,91.232,24.695]
[1643423781208,34.63322013,91.285,91.232,24.695]
[1643423782407,15.77,91.32,91.232,24.695]
[1643423782707,15.77,91.34,91.243,108.5]
[1643423782907,26.35054807,91.344,91.245,108.5]
[1643423783108,24.8327,91.344,91.255,6.0]
[1643423783307,24.8327,91.344,91.256,23.5957]
[1643423783510,31.73602319,91.343,91.257,37.32640223]
[1643423784011,31.73602319,91.343,91.256,23.5957]
[1643423784012,6.0,91.333,91.258,0.25]
[1643423784211,24.3683,91.332,91.258,0.25]
[1643423784410,27.57499142,91.332,91.258,0.25]
[1643423784812,2.95669142,91.331,91.257,0.25]
[1643423785212,0.25,91.33,91.257,0.25]
[1643423785412,16.69,91.33,91.257,0.25]
[1643423785612,3.58694749,91.329,91.257,0.25]
[1643423785813,0.25,91.328,91.257,0.25]
[1643423786013,3.58694749,91.329,91.266,6.0]
[1643423786213,3.58694749,91.329,91.268,33.05505515]
[1643423786412,3.58694749,91.329,91.269,0.25]
[1643423786615,6.0,91.319,91.269,0.25]
[1643423787644,6.0,91.319,91.268,0.25]
[1643423793752,0.25,91.318,91.268,0.25]
[1643423795349,3.58694749,91.329,91.268,0.25]
[1643423796350,16.441,91.32,91.237,1.49976482]
[1643423796550,16.441,91.32,91.2,73.8962]
[1643423796551,32.211,91.32,91.231,1.49976482]
[1643423796752,27.68399142,91.319,91.224,1.49976482]
[1643423797054,2.95669142,91.318,91.219,1.49976482]
[1643423797250,0.25,91.317,91.218,1.49976482]
[1643423797652,16.446,91.3,91.218,1.49976482]
[1643423797850,2.95669142,91.316,91.212,1.49976482]
[1643423797851,31.73602319,91.298,91.212,1.49976482]
[1643423798052,31.73602319,91.298,91.207,1.49976482]
[1643423798251,0.25,91.297,91.207,1.49976482]
[1643423799052,6.0,91.288,91.207,1.49976482]
[1643423799252,24.6007,91.287,91.208,0.25]
[1643423799451,24.8507,91.287,91.206,1.74976482]
[1643423800450,24.8507,91.287,91.209,1.49976482]
[1643423800652,24.8507,91.287,91.208,1.49976482]
[1643423800851,24.8507,91.287,91.209,0.25]
[1643423801050,24.8507,91.287,91.21,1.49976482]
[1643423801252,24.8507,91.287,91.211,0.25]
[1643423802455,24.8507,91.287,91.21,0.25]
[1643423803057,3.58694749,91.276,91.213,1.49976482]
[1643423803255,3.58694749,91.276,91.215,6.0]
[1643423803655,3.58694749,91.276,91.216,0.25]
[1643423803860,3.58694749,91.276,91.216,24.8589]
[1643423804355,0.25,91.275,91.216,24.8589]
[1643423804557,3.58694749,91.276,91.216,24.8589]
[1643423804759,0.25,91.275,91.216,24.8589]
[1643423804957,3.58694749,91.276,91.216,24.8589]
[1643423805157,0.25,91.275,91.216,24.8589]
[1643423806359,3.58694749,91.276,91.216,24.8589]
[1643423808265,0.25,91.275,91.216,24.8589]
[1643423809769,3.58694749,91.276,91.217,108.5]
[1643423809970,3.58694749,91.276,91.218,1.49976482]
[1643423810169,3.58694749,91.276,91.227,6.0]
[1643423810368,3.58694749,91.276,91.228,0.25]
[1643423810571,3.58694749,91.276,91.218,0.25]
[1643423811169,0.25,91.275,91.218,0.25]
[1643423811569,3.58694749,91.276,91.216,24.6089]
[1643423811570,6.0,91.266,91.217,0.25]
[1643423813270,3.58694749,91.276,91.226,6.0]
[1643423813691,3.58694749,91.276,91.227,0.25]
[1643423814093,6.0,91.266,91.216,24.6089]
[1643423814293,0.25,91.265,91.216,24.6089]
[1643423814493,6.0,91.266,91.216,24.6089]
[1643423814696,3.58694749,91.276,91.216,24.6089]
[1643423814897,3.58694749,91.276,91.226,6.0]
[1643423815198,0.25,91.275,91.223,38.95816577]
[1643423815395,0.25,91.275,91.224,0.25]
[1643423816095,6.0,91.266,91.224,0.25]
[1643423816294,6.0,91.266,91.217,0.25]
[1643423819898,6.0,91.266,91.216,24.6089]
[1643423819899,0.25,91.265,91.216,24.6089]
[1643423820099,6.0,91.266,91.216,24.6089]
[1643423821298,6.0,91.266,91.217,0.25]
[1643423822300,0.25,91.265,91.217,0.25]
[1643423822703,6.0,91.266,91.217,0.25]
[1643423823704,6.0,91.266,91.217,1.74976482]
[1643423823907,1.51784807,91.307,91.228,108.5]
[1643423824106,1.51784807,91.307,91.238,6.0]
[1643423824306,1.51784807,91.313,91.239,0.25]
[1643423824509,24.6346,91.314,91.245,6.0]
[1643423824705,24.6346,91.314,91.239,0.25]
[1643423824706,24.6346,91.314,91.246,24.8862]
[1643423824906,28.11772126,91.313,91.247,0.25]
[1643423825308,0.25,91.312,91.247,0.25]
[1643423826608,6.0,91.303,91.247,0.25]
[1643423826906,0.25,91.302,91.247,0.25]
[1643423827910,0.25,91.302,90.872,0.2]
[1643423827911,0.25,91.302,91.233,1.49976482]
[1643423828110,22.7534,91.302,91.233,1.49976482]
[1643423828307,22.7534,91.302,91.225,1.49976482]
[1643423828511,22.7534,91.302,91.222,1.49976482]
[1643423828707,22.7534,91.302,91.221,1.49976482]
[1643423828910,7.20524942,91.299,91.217,1.49976482]
[1643423829108,8.72309749,91.299,91.217,1.49976482]
[1643423829308,0.25,91.298,91.218,0.25]
[1643423829509,0.25,91.298,91.217,1.49976482]
[1643423829709,0.25,91.298,91.215,1.49976482]
[1643423829710,1.51784807,91.297,91.215,1.49976482]
[1643423829909,1.51784807,91.284,91.202,1.49976482]
[1643423830110,16.453,91.26,91.193,1.49976482]
[1643423830310,0.25,91.259,91.19,1.49976482]
[1643423830513,28.36772126,91.259,91.19,1.49976482]
[1643423830712,39.43772126,91.259,91.19,1.49976482]
[1643423831110,39.43772126,91.259,91.188,1.49976482]
[1643423831313,16.454,91.25,91.189,0.25]
[1643423831512,0.25,91.249,91.188,1.49976482]
[1643423831812,0.25,91.249,91.176,1.49976482]
[1643423832013,6.0,91.24,91.173,1.49976482]
[1643423832413,7.45524942,91.239,91.172,26.21866482]
[1643423832612,6.0,91.229,91.172,26.21866482]
[1643423832815,0.25,91.228,91.173,0.25]